[Event "*** Titled Tuesday 3|2 Blitz"]
[Site "Chess.com"]
[Date "2016.10.04"]
[Round "6"]
[White "MFBerna"]
[Black "nonscitis"]
[Result "1-0"]
[WhiteElo "2182"]
[BlackElo "2306"]
[TimeControl "180+2"]
[EndTime "18:20:31 PDT"]
[Termination "MFBerna won by checkmate"]

1. e4 {[%clk 0:03:02]} 1... c5 {[%clk 0:03:01.1]} 2. Nf3 {[%clk 0:03:02.6]} 2...
d6 {[%clk 0:03:02.4]} 3. d4 {[%clk 0:03:04.2]} 3... cxd4 {[%clk 0:03:03.4]} 4.
Nxd4 {[%clk 0:03:06.1]} 4... Nf6 {[%clk 0:03:04.7]} 5. Nc3 {[%clk 0:03:07.5]}
5... a6 {[%clk 0:03:05.8]} 6. Be3 {[%clk 0:03:08.4]} 6... Ng4 {[%clk 0:03:03.3]}
7. Bg5 {[%clk 0:03:08.6]} 7... h6 {[%clk 0:03:01.4]} 8. Bh4 {[%clk 0:03:09]}
8... g5 {[%clk 0:03:02.5]} 9. Bg3 {[%clk 0:03:10.1]} 9... Bg7 {[%clk 0:03:03.3]}
10. Be2 {[%clk 0:03:08.2]} 10... Ne5 {[%clk 0:03:00.8]} 11. Qd2 {[%clk
0:02:58.8]} 11... Nbc6 {[%clk 0:02:58.7]} 12. O-O-O {[%clk 0:02:28]} 12... O-O
{[%clk 0:02:30.2]} 13. h4 {[%clk 0:02:10.6]} 13... Nxd4 {[%clk 0:02:28.8]} 14.
Qxd4 {[%clk 0:02:08.3]} 14... g4 {[%clk 0:01:59.3]} 15. Nd5 {[%clk 0:01:56.3]}
15... e6 {[%clk 0:01:47.2]} 16. Ne3 {[%clk 0:01:46.6]} 16... Qa5 {[%clk
0:01:34.4]} 17. Qxd6 {[%clk 0:01:25.1]} 17... Qxa2 {[%clk 0:01:23.7]} 18. Bxe5
{[%clk 0:01:19.3]} 18... Qa1+ {[%clk 0:01:24.4]} 19. Kd2 {[%clk 0:01:20.6]}
19... Qa5+ {[%clk 0:01:25.6]} 20. b4 {[%clk 0:00:46.9]} 20... Qxe5 {[%clk
0:01:20.8]} 21. Qxe5 {[%clk 0:00:46.9]} 21... Bxe5 {[%clk 0:01:18.1]} 22. Nxg4
{[%clk 0:00:46.2]} 22... Bg7 {[%clk 0:01:16.9]} 23. e5 {[%clk 0:00:41.1]} 23...
Bd7 {[%clk 0:01:13.8]} 24. Bf3 {[%clk 0:00:36.3]} 24... a5 {[%clk 0:01:02.5]}
25. Ke3 {[%clk 0:00:26.3]} 25... Bc6 {[%clk 0:01:02.8]} 26. Bxc6 {[%clk
0:00:24.2]} 26... bxc6 {[%clk 0:01:03.4]} 27. bxa5 {[%clk 0:00:25.8]} 27... Rxa5
{[%clk 0:01:03.5]} 28. f4 {[%clk 0:00:15.5]} 28... Rd5 {[%clk 0:00:54]} 29. c4
{[%clk 0:00:14.8]} 29... Rc5 {[%clk 0:00:52.3]} 30. Kd4 {[%clk 0:00:13.4]} 30...
Ra5 {[%clk 0:00:53.3]} 31. Ra1 {[%clk 0:00:13.7]} 31... Rd8+ {[%clk 0:00:49.3]}
32. Kc3 {[%clk 0:00:10.8]} 32... Rc5 {[%clk 0:00:49.7]} 33. Rhd1 {[%clk
0:00:09]} 33... Rb8 {[%clk 0:00:42.3]} 34. Ra7 {[%clk 0:00:09.5]} 34... h5
{[%clk 0:00:42.3]} 35. Ne3 {[%clk 0:00:05]} 35... Bxe5+ {[%clk 0:00:36.7]} 36.
fxe5 {[%clk 0:00:04.8]} 36... Rxe5 {[%clk 0:00:36.1]} 37. Rd3 {[%clk 0:00:05.1]}
37... Kg7 {[%clk 0:00:34]} 38. Nc2 {[%clk 0:00:05.1]} 38... Rg8 {[%clk
0:00:32.2]} 39. Rg3+ {[%clk 0:00:05.9]} 39... Kh8 {[%clk 0:00:32.3]} 40. Rxg8+
{[%clk 0:00:06.5]} 40... Kxg8 {[%clk 0:00:34.2]} 41. Rc7 {[%clk 0:00:06.7]}
41... c5 {[%clk 0:00:35.1]} 42. Kd3 {[%clk 0:00:06.9]} 42... Rf5 {[%clk
0:00:31.4]} 43. Ne3 {[%clk 0:00:07.7]} 43... Rf4 {[%clk 0:00:31.9]} 44. g3
{[%clk 0:00:08.2]} 44... Rf3 {[%clk 0:00:31.5]} 45. Rxc5 {[%clk 0:00:09.6]}
45... Rxg3 {[%clk 0:00:32.6]} 46. Rxh5 {[%clk 0:00:11.1]} 46... Kf8 {[%clk
0:00:33.6]} 47. c5 {[%clk 0:00:10.4]} 47... Ke7 {[%clk 0:00:34.8]} 48. Rg5
{[%clk 0:00:10.1]} 48... Rh3 {[%clk 0:00:35.2]} 49. h5 {[%clk 0:00:10.8]} 49...
f6 {[%clk 0:00:36.5]} 50. Rg7+ {[%clk 0:00:11.3]} 50... Kf8 {[%clk 0:00:33.7]}
51. Rh7 {[%clk 0:00:11.8]} 51... Kg8 {[%clk 0:00:34.9]} 52. c6 {[%clk
0:00:08.5]} 52... Kxh7 {[%clk 0:00:22.5]} 53. c7 {[%clk 0:00:09.5]} 53... Rxh5
{[%clk 0:00:23]} 54. c8=Q {[%clk 0:00:10.6]} 54... Kh6 {[%clk 0:00:24.4]} 55.
Qxe6 {[%clk 0:00:10.7]} 55... Kg6 {[%clk 0:00:25.1]} 56. Qg8+ {[%clk 0:00:10.8]}
56... Kh6 {[%clk 0:00:22.3]} 57. Ng4# {[%clk 0:00:11.9]} 1-0

[Event "*** Titled Tuesday 3|2 Blitz"]
[Site "Chess.com"]
[Date "2016.10.04"]
[Round "6"]
[White "Mornar1951"]
[Black "Paralinch"]
[Result "0-1"]
[WhiteElo "2586"]
[BlackElo "2625"]
[TimeControl "180+2"]
[EndTime "18:20:56 PDT"]
[Termination "Paralinch won by resignation"]

1. d4 {[%clk 0:03:02]} 1... d5 {[%clk 0:03:01.1]} 2. c4 {[%clk 0:03:03.2]} 2...
c6 {[%clk 0:03:02.6]} 3. Nf3 {[%clk 0:03:01.8]} 3... Nf6 {[%clk 0:03:03.5]} 4.
e3 {[%clk 0:03:03.1]} 4... Bg4 {[%clk 0:03:03.6]} 5. h3 {[%clk 0:03:01.9]} 5...
Bh5 {[%clk 0:03:03]} 6. cxd5 {[%clk 0:03:02.7]} 6... Bxf3 {[%clk 0:03:03.6]} 7.
Qxf3 {[%clk 0:03:04.3]} 7... cxd5 {[%clk 0:03:05.2]} 8. Nc3 {[%clk 0:03:05.6]}
8... e6 {[%clk 0:03:06.1]} 9. Bd3 {[%clk 0:03:07.2]} 9... Nc6 {[%clk 0:03:07.3]}
10. O-O {[%clk 0:03:08.8]} 10... Bd6 {[%clk 0:03:08.3]} 11. Bd2 {[%clk 0:03:10]}
11... O-O {[%clk 0:03:09.2]} 12. Rac1 {[%clk 0:03:10.3]} 12... Rc8 {[%clk
0:03:10]} 13. Qe2 {[%clk 0:03:11]} 13... a6 {[%clk 0:03:08.2]} 14. Rfd1 {[%clk
0:03:12.1]} 14... Qe7 {[%clk 0:03:08.5]} 15. Be1 {[%clk 0:03:06.3]} 15... Nd7
{[%clk 0:03:02.5]} 16. a3 {[%clk 0:02:56.7]} 16... Nb6 {[%clk 0:02:55.2]} 17. f4
{[%clk 0:02:51.5]} 17... f5 {[%clk 0:02:55.9]} 18. g4 {[%clk 0:02:48.7]} 18...
g6 {[%clk 0:02:55.8]} 19. g5 {[%clk 0:02:49]} 19... Na7 {[%clk 0:02:42.8]} 20.
Rc2 {[%clk 0:02:39.6]} 20... Nc4 {[%clk 0:02:43.3]} 21. Rdc1 {[%clk 0:02:37.5]}
21... b5 {[%clk 0:02:44.2]} 22. Nb1 {[%clk 0:02:36.9]} 22... Qb7 {[%clk
0:02:30.5]} 23. a4 {[%clk 0:02:24]} 23... bxa4 {[%clk 0:02:24]} 24. Bxc4 {[%clk
0:02:24.6]} 24... dxc4 {[%clk 0:02:25.3]} 25. Rxc4 {[%clk 0:02:26.4]} 25... Kf7
{[%clk 0:02:07.8]} 26. Na3 {[%clk 0:01:53]} 26... Rxc4 {[%clk 0:02:04]} 27. Nxc4
{[%clk 0:01:49.9]} 27... Bb8 {[%clk 0:01:58.7]} 28. Ne5+ {[%clk 0:01:43.2]}
28... Bxe5 {[%clk 0:01:58.8]} 29. dxe5 {[%clk 0:01:43.2]} 29... Rc8 {[%clk
0:01:56.1]} 30. Rd1 {[%clk 0:01:40.9]} 30... Nb5 {[%clk 0:01:56.8]} 31. Ba5
{[%clk 0:01:25.8]} 31... Kg8 {[%clk 0:01:30]} 32. Be1 {[%clk 0:00:41.5]} 32...
Qe4 {[%clk 0:01:26.4]} 33. Qd2 {[%clk 0:00:33.4]} 33... Qc6 {[%clk 0:01:17.4]}
34. Bf2 {[%clk 0:00:23.5]} 34... a3 {[%clk 0:01:15.7]} 35. bxa3 {[%clk
0:00:23.5]} 35... Nc3 {[%clk 0:01:16.9]} 36. Re1 {[%clk 0:00:15.7]} 36... Ne4
{[%clk 0:01:17.6]} 37. Qb4 {[%clk 0:00:13.6]} 37... Kf7 {[%clk 0:01:03.1]} 38.
Rd1 {[%clk 0:00:13]} 38... Qb5 {[%clk 0:00:42.7]} 39. Qxb5 {[%clk 0:00:13.2]}
39... axb5 {[%clk 0:00:43.7]} 40. Rd7+ {[%clk 0:00:14.5]} 40... Ke8 {[%clk
0:00:41.8]} 41. Rd1 {[%clk 0:00:13.4]} 41... Rc3 {[%clk 0:00:40.1]} 42. Ra1
{[%clk 0:00:13.1]} 42... Rb3 {[%clk 0:00:39.5]} 43. Kf1 {[%clk 0:00:13.1]} 43...
Kd7 {[%clk 0:00:39.1]} 44. Ra2 {[%clk 0:00:13.5]} 44... Kc6 {[%clk 0:00:38.2]}
45. Kg2 {[%clk 0:00:14.9]} 45... Nc3 {[%clk 0:00:37.6]} 46. Rc2 {[%clk
0:00:15.2]} 46... Kd5 {[%clk 0:00:36.3]} 47. Be1 {[%clk 0:00:15.6]} 47... Ne4
{[%clk 0:00:34.1]} 48. Bb4 {[%clk 0:00:16.8]} 48... Rxe3 {[%clk 0:00:33.3]} 49.
Rc7 {[%clk 0:00:18.4]} 49... Rg3+ {[%clk 0:00:32.3]} 50. Kh2 {[%clk 0:00:19.7]}
50... Rf3 {[%clk 0:00:32.1]} 51. Rxh7 {[%clk 0:00:20.4]} 51... Rxf4 {[%clk
0:00:31.5]} 52. h4 {[%clk 0:00:21.9]} 52... Rf2+ {[%clk 0:00:25]} 53. Kg1 {[%clk
0:00:22.4]} 53... Rf3 {[%clk 0:00:26.2]} 54. Rh6 {[%clk 0:00:21.9]} 54... f4
{[%clk 0:00:21.7]} 55. Rxg6 {[%clk 0:00:22.4]} 55... Kxe5 {[%clk 0:00:22.6]} 56.
Rg8 {[%clk 0:00:21.9]} 56... Kf5 {[%clk 0:00:22.8]} 57. g6 {[%clk 0:00:21.8]}
57... Rg3+ {[%clk 0:00:23.8]} 58. Kf1 {[%clk 0:00:22.4]} 58... Rxg6 {[%clk
0:00:24.8]} 59. Rxg6 {[%clk 0:00:21.8]} 59... Kxg6 {[%clk 0:00:25.9]} 60. Ke2
{[%clk 0:00:23.2]} 60... Kf5 {[%clk 0:00:26.5]} 61. Be1 {[%clk 0:00:23.5]} 61...
Nf6 {[%clk 0:00:27.4]} 62. Kd3 {[%clk 0:00:24.6]} 62... e5 {[%clk 0:00:28.7]}
63. Kc3 {[%clk 0:00:25.1]} 63... e4 {[%clk 0:00:29.8]} 64. Kb4 {[%clk 0:00:26]}
64... e3 {[%clk 0:00:31.1]} 65. Kc3 {[%clk 0:00:24.7]} 65... Ke4 {[%clk
0:00:32.2]} 66. Kb4 {[%clk 0:00:21.2]} 66... f3 {[%clk 0:00:33.3]} 67. Kxb5
{[%clk 0:00:22.1]} 67... f2 {[%clk 0:00:34.7]} 0-1

[Event "*** Titled Tuesday 3|2 Blitz"]
[Site "Chess.com"]
[Date "2016.10.04"]
[Round "6"]
[White "Iball95"]
[Black "jlandaw"]
[Result "0-1"]
[WhiteElo "2486"]
[BlackElo "2321"]
[TimeControl "180+2"]
[EndTime "18:21:14 PDT"]
[Termination "jlandaw won by checkmate"]

1. d4 {[%clk 0:03:01.1]} 1... d5 {[%clk 0:03:00.6]} 2. c4 {[%clk 0:03:01.8]}
2... c6 {[%clk 0:03:02]} 3. Nf3 {[%clk 0:03:02.6]} 3... e6 {[%clk 0:03:03]} 4.
e3 {[%clk 0:03:02]} 4... f5 {[%clk 0:03:02.2]} 5. Bd3 {[%clk 0:03:01]} 5... Nf6
{[%clk 0:03:01.8]} 6. O-O {[%clk 0:03:01.8]} 6... Nbd7 {[%clk 0:02:54.5]} 7. b3
{[%clk 0:03:02.8]} 7... Bd6 {[%clk 0:02:45.4]} 8. Ba3 {[%clk 0:02:59.1]} 8...
Bxa3 {[%clk 0:02:39.9]} 9. Nxa3 {[%clk 0:03:01]} 9... O-O {[%clk 0:02:41.1]} 10.
cxd5 {[%clk 0:02:41.8]} 10... cxd5 {[%clk 0:02:19.7]} 11. Qc2 {[%clk 0:02:25.7]}
11... Ne4 {[%clk 0:02:13.9]} 12. Rac1 {[%clk 0:02:23.2]} 12... Qe7 {[%clk
0:02:08.1]} 13. Nb5 {[%clk 0:02:18]} 13... a6 {[%clk 0:02:06.5]} 14. Nc3 {[%clk
0:02:06.6]} 14... b5 {[%clk 0:02:05.5]} 15. Ne2 {[%clk 0:01:59.2]} 15... Rb8
{[%clk 0:01:21.8]} 16. Qc7 {[%clk 0:01:29.2]} 16... Rb7 {[%clk 0:01:22.1]} 17.
Qc6 {[%clk 0:01:25.3]} 17... Rb6 {[%clk 0:01:03.6]} 18. Qc7 {[%clk 0:01:24.8]}
18... Rb7 {[%clk 0:01:04.3]} 19. Qa5 {[%clk 0:01:25.7]} 19... Rb6 {[%clk
0:00:50]} 20. Ne5 {[%clk 0:00:49.3]} 20... Nxe5 {[%clk 0:00:46.3]} 21. dxe5
{[%clk 0:00:51.2]} 21... Qb7 {[%clk 0:00:38.9]} 22. Nd4 {[%clk 0:00:47.1]} 22...
f4 {[%clk 0:00:24.8]} 23. exf4 {[%clk 0:00:34.1]} 23... b4 {[%clk 0:00:26]} 24.
g3 {[%clk 0:00:26.6]} 24... Nc3 {[%clk 0:00:27]} 25. Ne2 {[%clk 0:00:24.9]}
25... Nxe2+ {[%clk 0:00:20.5]} 26. Bxe2 {[%clk 0:00:26.8]} 26... Bd7 {[%clk
0:00:21.5]} 27. Qc5 {[%clk 0:00:26.7]} 27... Bb5 {[%clk 0:00:20.6]} 28. Bxb5
{[%clk 0:00:26.4]} 28... Rxb5 {[%clk 0:00:22.5]} 29. Qc7 {[%clk 0:00:27.3]}
29... a5 {[%clk 0:00:15.9]} 30. Rfd1 {[%clk 0:00:20.9]} 30... Ra8 {[%clk
0:00:14]} 31. Qd6 {[%clk 0:00:20.5]} 31... Rb6 {[%clk 0:00:13.5]} 32. Qc5 {[%clk
0:00:17.2]} 32... Rb5 {[%clk 0:00:15]} 33. Qd4 {[%clk 0:00:17.9]} 33... h6
{[%clk 0:00:15.3]} 34. Rc2 {[%clk 0:00:18.3]} 34... a4 {[%clk 0:00:16.8]} 35.
Rdc1 {[%clk 0:00:19.4]} 35... axb3 {[%clk 0:00:18.1]} 36. axb3 {[%clk
0:00:21.3]} 36... Qb6 {[%clk 0:00:16.4]} 37. Rc8+ {[%clk 0:00:21.2]} 37... Rxc8
{[%clk 0:00:17.7]} 38. Rxc8+ {[%clk 0:00:22.8]} 38... Kf7 {[%clk 0:00:17.9]} 39.
Qxb6 {[%clk 0:00:22.4]} 39... Rxb6 {[%clk 0:00:19]} 40. Rc7+ {[%clk 0:00:23.8]}
40... Kg6 {[%clk 0:00:18.7]} 41. g4 {[%clk 0:00:25.3]} 41... h5 {[%clk
0:00:19.4]} 42. f3 {[%clk 0:00:23.4]} 42... Ra6 {[%clk 0:00:19.3]} 43. Rb7
{[%clk 0:00:24.2]} 43... hxg4 {[%clk 0:00:08.5]} 44. fxg4 {[%clk 0:00:24.5]}
44... Ra2 {[%clk 0:00:06.7]} 45. Rxb4 {[%clk 0:00:24.8]} 45... Rb2 {[%clk
0:00:06.1]} 46. h4 {[%clk 0:00:25.7]} 46... Kf7 {[%clk 0:00:06.1]} 47. Rb7+
{[%clk 0:00:27.1]} 47... Kf8 {[%clk 0:00:07.3]} 48. Rb6 {[%clk 0:00:28.3]} 48...
Kf7 {[%clk 0:00:08.1]} 49. h5 {[%clk 0:00:29.9]} 49... d4 {[%clk 0:00:09.4]} 50.
Kf1 {[%clk 0:00:21.3]} 50... d3 {[%clk 0:00:10]} 51. g5 {[%clk 0:00:21.2]} 51...
Rb1+ {[%clk 0:00:08.9]} 52. Kf2 {[%clk 0:00:20.5]} 52... d2 {[%clk 0:00:10.5]}
53. Rb7+ {[%clk 0:00:21.7]} 53... Kf8 {[%clk 0:00:11.9]} 54. Rb8+ {[%clk
0:00:16.5]} 54... Ke7 {[%clk 0:00:13.2]} 55. Rb7+ {[%clk 0:00:18]} 55... Kd8
{[%clk 0:00:14.6]} 56. h6 {[%clk 0:00:13.6]} 56... gxh6 {[%clk 0:00:15.8]} 57.
gxh6 {[%clk 0:00:13.1]} 57... d1=Q {[%clk 0:00:16.9]} 58. h7 {[%clk 0:00:14.9]}
58... Rb2+ {[%clk 0:00:16.6]} 59. Kg3 {[%clk 0:00:15.7]} 59... Qg1+ {[%clk
0:00:16.9]} 60. Kf3 {[%clk 0:00:17.2]} 60... Qh1+ {[%clk 0:00:10.8]} 61. Ke3
{[%clk 0:00:16]} 61... Rh2 {[%clk 0:00:11.9]} 62. Rb8+ {[%clk 0:00:09.6]} 62...
Kc7 {[%clk 0:00:13.2]} 63. Rb4 {[%clk 0:00:10.2]} 63... Qe1+ {[%clk 0:00:11.9]}
64. Kf3 {[%clk 0:00:10.5]} 64... Qxb4 {[%clk 0:00:13.8]} 65. Kg4 {[%clk
0:00:11.7]} 65... Rxh7 {[%clk 0:00:14.7]} 66. Kg5 {[%clk 0:00:13.6]} 66... Qe4
{[%clk 0:00:15.9]} 67. Kf6 {[%clk 0:00:15.5]} 67... Qf5# {[%clk 0:00:17.1]} 0-1

[Event "*** Titled Tuesday 3|2 Blitz"]
[Site "Chess.com"]
[Date "2016.10.04"]
[Round "6"]
[White "Kubas1010"]
[Black "Po6Don"]
[Result "1-0"]
[WhiteElo "2449"]
[BlackElo "2111"]
[TimeControl "180+2"]
[EndTime "18:21:16 PDT"]
[Termination "Kubas1010 won on time"]

1. d4 {[%clk 0:03:01.9]} 1... d5 {[%clk 0:03:00.6]} 2. c4 {[%clk 0:03:02.8]}
2... e5 {[%clk 0:03:01.7]} 3. dxe5 {[%clk 0:03:02.9]} 3... d4 {[%clk 0:03:03]}
4. a3 {[%clk 0:03:04.1]} 4... Nc6 {[%clk 0:03:03.7]} 5. e3 {[%clk 0:03:04.1]}
5... a5 {[%clk 0:03:00.3]} 6. exd4 {[%clk 0:02:55]} 6... Qxd4 {[%clk 0:03:00.3]}
7. Nc3 {[%clk 0:02:35.3]} 7... Be6 {[%clk 0:02:59]} 8. Nf3 {[%clk 0:02:32.7]}
8... Qxd1+ {[%clk 0:02:45.7]} 9. Nxd1 {[%clk 0:02:26.6]} 9... Nge7 {[%clk
0:02:38.4]} 10. Bf4 {[%clk 0:02:22.9]} 10... Ng6 {[%clk 0:02:18.3]} 11. Bg3
{[%clk 0:02:24]} 11... h5 {[%clk 0:02:20]} 12. h3 {[%clk 0:02:21.5]} 12... h4
{[%clk 0:02:20.8]} 13. Bh2 {[%clk 0:02:21.9]} 13... O-O-O {[%clk 0:02:12]} 14.
Nc3 {[%clk 0:02:16.7]} 14... Nd4 {[%clk 0:01:58.2]} 15. Nxd4 {[%clk 0:02:14.7]}
15... Rxd4 {[%clk 0:02:00.1]} 16. Rd1 {[%clk 0:02:10.3]} 16... Bc5 {[%clk
0:02:00.9]} 17. Rxd4 {[%clk 0:01:50.5]} 17... Bxd4 {[%clk 0:02:01.1]} 18. f4
{[%clk 0:01:31.4]} 18... Bxc3+ {[%clk 0:01:34.1]} 19. bxc3 {[%clk 0:01:31.6]}
19... Rd8 {[%clk 0:01:36]} 20. Be2 {[%clk 0:01:30.9]} 20... Ne7 {[%clk
0:01:35.9]} 21. g4 {[%clk 0:01:19.7]} 21... hxg3 {[%clk 0:01:35.4]} 22. Bxg3
{[%clk 0:01:20.8]} 22... Nf5 {[%clk 0:01:36.2]} 23. Bf2 {[%clk 0:01:21.9]} 23...
b6 {[%clk 0:01:23.2]} 24. Rg1 {[%clk 0:01:19.4]} 24... g6 {[%clk 0:01:23.3]} 25.
h4 {[%clk 0:01:17.7]} 25... c5 {[%clk 0:01:12.4]} 26. Rh1 {[%clk 0:00:58.5]}
26... Rh8 {[%clk 0:00:51.7]} 27. Kd2 {[%clk 0:00:58]} 27... Bd7 {[%clk
0:00:35.3]} 28. Bf3 {[%clk 0:00:56]} 28... Kc7 {[%clk 0:00:35.7]} 29. Kd3 {[%clk
0:00:50.7]} 29... Rd8 {[%clk 0:00:33.4]} 30. Bd5 {[%clk 0:00:51.2]} 30... Bc6
{[%clk 0:00:16.2]} 31. Ke4 {[%clk 0:00:52.3]} 31... Ne7 {[%clk 0:00:07.2]} 32.
Bxc6 {[%clk 0:00:49.9]} 32... Kxc6 {[%clk 0:00:08.9]} 33. h5 {[%clk 0:00:50]}
33... gxh5 {[%clk 0:00:08.2]} 34. Rxh5 {[%clk 0:00:50]} 34... Rd2 {[%clk
0:00:09.3]} 35. Rh6+ {[%clk 0:00:49.9]} 35... Kc7 {[%clk 0:00:09.4]} 36. Be3
{[%clk 0:00:51]} 36... Rd7 {[%clk 0:00:09.3]} 37. Rh7 {[%clk 0:00:49]} 37... Nc6
{[%clk 0:00:09.6]} 38. f5 {[%clk 0:00:50.2]} 38... a4 {[%clk 0:00:09.9]} 39. Bf4
{[%clk 0:00:50.6]} 39... Kc8 {[%clk 0:00:09.2]} 40. Rh8+ {[%clk 0:00:50.7]}
40... Rd8 {[%clk 0:00:06.4]} 41. Rxd8+ {[%clk 0:00:47.5]} 41... Nxd8 {[%clk
0:00:07.2]} 42. Kd5 {[%clk 0:00:45]} 42... Kd7 {[%clk 0:00:07.9]} 43. Bg5 {[%clk
0:00:46.4]} 43... Nb7 {[%clk 0:00:03.8]} 44. e6+ {[%clk 0:00:47.6]} 44... fxe6+
{[%clk 0:00:05]} 45. fxe6+ {[%clk 0:00:49.5]} 45... Ke8 {[%clk 0:00:06.5]} 46.
Kc6 {[%clk 0:00:48.8]} 46... Na5+ {[%clk 0:00:07.4]} 47. Kb5 {[%clk 0:00:50]}
47... Kf8 {[%clk 0:00:07.1]} 48. Bd8 {[%clk 0:00:41.9]} 48... Nb7 {[%clk
0:00:06.4]} 49. e7+ {[%clk 0:00:32.8]} 49... Ke8 {[%clk 0:00:07.4]} 50. Kxb6
{[%clk 0:00:34.3]} 50... Nd6 {[%clk 0:00:03.9]} 51. Kxc5 {[%clk 0:00:34.5]}
51... Ne4+ {[%clk 0:00:04.5]} 52. Kb4 {[%clk 0:00:35.2]} 52... Kd7 {[%clk
0:00:05.3]} 53. c5 {[%clk 0:00:36.5]} 53... Nf6 {[%clk 0:00:05.3]} 54. Kxa4
{[%clk 0:00:31.9]} 54... Kc6 {[%clk 0:00:06.1]} 55. Kb4 {[%clk 0:00:33.3]} 55...
Nd5+ {[%clk 0:00:06.7]} 56. Kc4 {[%clk 0:00:33.5]} 56... Nf6 {[%clk 0:00:07.7]}
57. a4 {[%clk 0:00:32.2]} 57... Ne8 {[%clk 0:00:07.5]} 58. Ba5 {[%clk
0:00:32.3]} 58... Nf6 {[%clk 0:00:03.9]} 59. Bb4 {[%clk 0:00:33]} 59... Ne8
{[%clk 0:00:05]} 60. Ba3 {[%clk 0:00:34.4]} 60... Nc7 {[%clk 0:00:05.9]} 61. Bc1
{[%clk 0:00:34.4]} 61... Ne8 {[%clk 0:00:04.9]} 62. Bg5 {[%clk 0:00:34.8]} 62...
Nc7 {[%clk 0:00:05.5]} 63. Bf4 {[%clk 0:00:35.7]} 63... Ne8 {[%clk 0:00:05.9]}
64. Be5 {[%clk 0:00:37]} 64... Kb7 {[%clk 0:00:03.1]} 65. Kd5 {[%clk 0:00:36.8]}
1-0

[Event "*** Titled Tuesday 3|2 Blitz"]
[Site "Chess.com"]
[Date "2016.10.04"]
[Round "7"]
[White "daro94"]
[Black "platy3"]
[Result "1/2-1/2"]
[WhiteElo "2682"]
[BlackElo "2751"]
[TimeControl "180+2"]
[EndTime "18:25:03 PDT"]
[Termination "Game drawn by agreement"]

1. e4 {[%clk 0:03:01]} 1... c5 {[%clk 0:03:00.7]} 2. Nf3 {[%clk 0:03:02.4]} 2...
e6 {[%clk 0:03:02.2]} 3. d4 {[%clk 0:03:02.8]} 3... cxd4 {[%clk 0:03:03]} 4.
Nxd4 {[%clk 0:03:04.7]} 4... Nf6 {[%clk 0:03:04.4]} 5. Nc3 {[%clk 0:03:05.9]}
5... d6 {[%clk 0:03:06]} 6. g4 {[%clk 0:03:05.9]} 6... e5 {[%clk 0:03:07.6]} 7.
Bb5+ {[%clk 0:03:04]} 7... Bd7 {[%clk 0:03:06.9]} 8. Bxd7+ {[%clk 0:03:04.2]}
8... Qxd7 {[%clk 0:03:08.8]} 9. Nf5 {[%clk 0:03:04.9]} 9... h5 {[%clk
0:03:10.4]} 10. gxh5 {[%clk 0:02:53]} 10... Nxh5 {[%clk 0:03:12.3]} 11. Qf3
{[%clk 0:02:54.1]} 11... Nc6 {[%clk 0:02:57.2]} 12. Be3 {[%clk 0:02:54.8]} 12...
g6 {[%clk 0:02:58.8]} 13. Ng3 {[%clk 0:02:55.8]} 13... Nf4 {[%clk 0:03:00.5]}
14. O-O-O {[%clk 0:02:42.2]} 14... Rh4 {[%clk 0:02:57.7]} 15. Kb1 {[%clk
0:02:34.6]} 15... Rc8 {[%clk 0:02:51.2]} 16. a3 {[%clk 0:01:50.7]} 16... Be7
{[%clk 0:02:46.9]} 1/2-1/2

[Event "*** Titled Tuesday 3|2 Blitz"]
[Site "Chess.com"]
[Date "2016.10.04"]
[Round "7"]
[White "nonscitis"]
[Black "Iwannabetheguy"]
[Result "1-0"]
[WhiteElo "2309"]
[BlackElo "2016"]
[TimeControl "180+2"]
[EndTime "18:26:56 PDT"]
[Termination "nonscitis won by resignation"]

1. d4 {[%clk 0:03:02]} 1... Nf6 {[%clk 0:02:58.7]} 2. c4 {[%clk 0:03:03.9]} 2...
g6 {[%clk 0:02:59.4]} 3. Nc3 {[%clk 0:03:03.9]} 3... Bg7 {[%clk 0:03:00.9]} 4.
e4 {[%clk 0:03:03.8]} 4... O-O {[%clk 0:03:02.2]} 5. f3 {[%clk 0:03:05.2]} 5...
d6 {[%clk 0:03:03.6]} 6. Be3 {[%clk 0:03:04.8]} 6... e5 {[%clk 0:03:05]} 7. d5
{[%clk 0:03:05.5]} 7... Nbd7 {[%clk 0:03:05.5]} 8. Qd2 {[%clk 0:03:06.2]} 8...
Nh5 {[%clk 0:03:07]} 9. Nge2 {[%clk 0:03:05.1]} 9... f5 {[%clk 0:03:07.9]} 10.
O-O-O {[%clk 0:02:59.1]} 10... a6 {[%clk 0:03:09.1]} 11. g4 {[%clk 0:02:58.5]}
11... fxg4 {[%clk 0:03:01.3]} 12. fxg4 {[%clk 0:02:59.2]} 12... Nhf6 {[%clk
0:02:51.9]} 13. h3 {[%clk 0:02:58.8]} 13... b5 {[%clk 0:02:53]} 14. Ng3 {[%clk
0:02:59.5]} 14... Nc5 {[%clk 0:02:47.4]} 15. g5 {[%clk 0:02:51.7]} 15... b4
{[%clk 0:02:39.4]} 16. gxf6 {[%clk 0:02:50.4]} 16... bxc3 {[%clk 0:02:40.5]} 17.
Qxc3 {[%clk 0:02:50.1]} 17... Qxf6 {[%clk 0:02:31.9]} 18. h4 {[%clk 0:02:38.1]}
18... Bg4 {[%clk 0:02:30.3]} 19. Re1 {[%clk 0:02:32.4]} 19... Bf3 {[%clk
0:02:27.1]} 20. Rg1 {[%clk 0:02:31.7]} 20... Nxe4 {[%clk 0:02:26.9]} 21. Nxe4
{[%clk 0:02:31]} 21... Bxe4 {[%clk 0:02:27.7]} 22. Bh3 {[%clk 0:02:27.6]} 22...
Bf5 {[%clk 0:02:19.7]} 23. Bg5 {[%clk 0:02:25.4]} 23... Qf7 {[%clk 0:02:17.1]}
24. h5 {[%clk 0:02:26.6]} 24... Bf6 {[%clk 0:02:06.5]} 25. Bxf5 {[%clk
0:02:24.5]} 25... Bxg5+ {[%clk 0:01:56.6]} 26. Rxg5 {[%clk 0:02:23.4]} 26... Qe7
{[%clk 0:01:58]} 27. Qg3 {[%clk 0:02:20.5]} 27... Kh8 {[%clk 0:01:53]} 28. hxg6
{[%clk 0:02:21.3]} 28... Rg8 {[%clk 0:01:16.6]} 29. Rh1 {[%clk 0:02:18.1]} 29...
Rg7 {[%clk 0:01:13.9]} 30. Rxh7+ {[%clk 0:02:18.1]} 30... Rxh7 {[%clk
0:01:14.3]} 31. gxh7 {[%clk 0:02:19]} 31... Qf6 {[%clk 0:01:11.2]} 32. Rg8+
{[%clk 0:02:18.5]} 1-0